Workbook

Sheet Ergebniss
C1: Ergebnislite
C2: 34. Münte Pokal Turnier 2019
B3: vom 10.08 & 11.08.2019 in Diepholz, Müntepark
A5: A. Turnierleiter:
C6: Raschke, Marcel | D6: BGC Diepholz | G6: 14567
A7: B. Schiedsgericht:
A8: 1. Turniergruppe:
B9: OSR: | C9: Heinisch, Hans-Werner | D9: BGC Bad Nenndorf | G9: 10437
B10: SR: | C10: Thun, Timo | D10: MGV Bremen | G10: 10451
B11: SR: | C11: Betzien, André | D11: BGC Diepholz | G11: 10819
A13: 2. Turniergruppe:
B14: OSR: | C14: Reinicke, Frank | D14: MC Möve Cuxhaven | G14: 17597
B15: SR: | C15: Raschke/D. Isabell | D15: BGC Diepholz | G15: 2449
B16: SR: | C16: Raschke, Benjamin | D16: BGC Bremen | G16: 18708
A18: C. Besondere Vorkommisse:
B19: Abbruch: | C19: keine
B20: Verwarnungen: | C20: keine
B21: Unterbrechung: | C21: Gr. 1 Regenunterbrechung von 12:50 bis 13:00 Uhr
A23: D. Mannschaftswertung:
A25: Vereinsmannschaft:
A26: Pl: | B26: Name: | D26: 1.Rd. | E26: 2.Rd. | F26: 3.Rd. | G26: 4.Rd. | H26: Ges: | I26: ø
A27: 1. | B27: BGC Diepholz II | D27: 106 | E27: 99 | F27: 112 | G27: 105 | H27: =SUM(D27:G27) -> 422 | I27: =ROUND(H27/16,3) -> 26.375
A28: 2. | B28: BGC Diepholz I | D28: 108 | E28: 111 | F28: 99 | G28: 104 | H28: 422 | I28: 26.375
A29: 3. | B29: MC Georgsmarienhütte | D29: 114 | E29: 116 | F29: 108 | G29: 108 | H29: 446 | I29: 27.875
A30: 4. | B30: MGV Bremen | D30: 135 | E30: 112 | F30: 122 | G30: 119 | H30: 488 | I30: 30.500
A32: E. Einzelwertung:
A34: Damen:
A35: Pl: | B35: Name: | D35: Ver: | E35: Sp-Nr: | F35: 1.Rd. | G35: 2.Rd. | H35: 3.Rd. | I35: 4.Rd. | J35: Ges: | K35: ø | L35: Diff:
A36: 1. | B36: Raschke/Dejoks, | C36: Isabell | D36: Die | E36: 884 | F36: 26 | G36: 25 | H36: 25 | I36: 21 | J36: =SUM(F36:I36) -> 97 | K36: =ROUND(J36/4,3) -> 24.250 | L36: =MAX(F36:I36)-MIN(F36:I36) -> 5
A38: Herren:
A39: Pl: | B39: Name: | D39: Ver: | E39: Sp-Nr: | F39: 1.Rd. | G39: 2.Rd. | H39: 3.Rd. | I39: 4.Rd. | J39: Ges: | K39: ø | L39: Diff:
A40: 1. | B40: Betzien, | C40: André | D40: Die | E40: 32105 | F40: 24 | G40: 23 | H40: 22 | I40: 26 | J40: =SUM(F40:I40) -> 95 | K40: =ROUND(J40/4,3) -> 23.750 | L40: =MAX(F40:I40)-MIN(F40:I40) -> 4
A41: 2. | B41: Raschke, | C41: Marcel | D41: Die | E41: 36567 | F41: 23 | G41: 25 | H41: 27 | I41: 25 | J41: 100 | K41: 25.000 | L41: 4
A42: 3. | B42: Heisel, | C42: Thomas | D42: Die | E42: 44726 | F42: 24 | G42: 28 | H42: 23 | I42: 26 | J42: 101 | K42: 25.250 | L42: 5
A43: 4. | B43: Raschke, | C43: Benjamin | D43: Bre | E43: 44728 | F43: 25 | G43: 26 | H43: 26 | I43: 26 | J43: 103 | K43: 25.750 | L43: 1
A44: 5. | B44: Wesemann, | C44: Florian | D44: Die | E44: 35546 | F44: 27 | G44: 23 | H44: 27 | I44: 27 | J44: 104 | K44: 26.000 | L44: 4
A45: 6. | B45: Diener, | C45: Manuel | D45: Han | E45: 66030 | F45: 29 | G45: 27 | H45: 24 | I45: 35 | J45: 115 | K45: 28.750 | L45: 11
A46: 7. | B46: Thun, | C46: Timo | D46: MGV | E46: 31419 | F46: 31 | G46: 25 | H46: 28 | I46: 33 | J46: 117 | K46: 29.250 | L46: 8
A47: 8. | B47: Wesemann, | C47: Eike-Fabian | D47: Die | E47: 36292 | F47: 28 | G47: 25 | H47: 38 | I47: 26 | J47: 117 | K47: 29.250 | L47: 13
A48: 9. | B48: Damaschke, | C48: Christian | D48: MGV | E48: 66729 | F48: 31 | G48: 34 | H48: 32 | I48: 31 | J48: 128 | K48: 32.000 | L48: 3
A50: Senioren weiblich I:
A51: Pl: | B51: Name: | D51: Ver: | E51: Sp-Nr: | F51: 1.Rd. | G51: 2.Rd. | H51: 3.Rd. | I51: 4.Rd. | J51: Ges: | K51: ø | L51: Diff:
A52: 1. | B52: Reinicke, | C52: Andrea | D52: Cux | E52: 44862 | F52: 19 | G52: 19 | H52: 25 | I52: 26 | J52: =SUM(F52:I52) -> 89 | K52: =ROUND(J52/4,3) -> 22.250 | L52: =MAX(F52:I52)-MIN(F52:I52) -> 7
A53: 2. | B53: Hunte, | C53: Stefanie | D53: Die | E53: 40603 | F53: 28 | G53: 26 | H53: 32 | I53: 27 | J53: 113 | K53: 28.250 | L53: 6
A55: Senioren weiblich II:
A56: Pl: | B56: Name: | D56: Ver: | E56: Sp-Nr: | F56: 1.Rd. | G56: 2.Rd. | H56: 3.Rd. | I56: 4.Rd. | J56: Ges: | K56: ø | L56: Diff:
A57: 1. | B57: Abeling/Betzien, | C57: Birgit | D57: Die | E57: 869 | F57: 34 | G57: 35 | H57: 29 | I57: 31 | J57: =SUM(F57:I57) -> 129 | K57: =ROUND(J57/4,3) -> 32.250 | L57: =MAX(F57:I57)-MIN(F57:I57) -> 6
A59: Senioren männlich I:
A60: Pl: | B60: Name: | D60: Ver: | E60: Sp-Nr: | F60: 1.Rd. | G60: 2.Rd. | H60: 3.Rd. | I60: 4.Rd. | J60: Ges: | K60: ø | L60: Diff:
A61: 1. | B61: Hennies, | C61: Holger | D61: Han | E61: 50094 | F61: 25 | G61: 23 | H61: 26 | I61: 25 | J61: =SUM(F61:I61) -> 99 | K61: =ROUND(J61/4,3) -> 24.750 | L61: =MAX(F61:I61)-MIN(F61:I61) -> 3
A62: 2. | B62: Schulte, | C62: Udo | D62: VfB | E62: 37834 | F62: 29 | G62: 26 | H62: 23 | I62: 26 | J62: =SUM(F62:I62) -> 104 | K62: =ROUND(J62/4,3) -> 26.000 | L62: =MAX(F62:I62)-MIN(F62:I62) -> 6
A63: 3. | B63: Hunte, | C63: Karl-Heinz | D63: Die | E63: 44723 | F63: 28 | G63: 28 | H63: 26 | I63: 26 | J63: =SUM(F63:I63) -> 108 | K63: =ROUND(J63/4,3) -> 27.000 | L63: =MAX(F63:I63)-MIN(F63:I63) -> 2
A64: 4. | B64: Louven, | C64: Hans | D64: MCG | E64: 66395 | F64: 33 | G64: 27 | H64: 23 | I64: 27 | J64: =SUM(F64:I64) -> 110 | K64: =ROUND(J64/4,3) -> 27.500 | L64: =MAX(F64:I64)-MIN(F64:I64) -> 10
A65: 5. | B65: Pape, | C65: Ronald | D65: MGV | E65: 36258 | F65: 36 | G65: 27 | H65: 28 | I65: 28 | J65: =SUM(F65:I65) -> 119 | K65: =ROUND(J65/4,3) -> 29.750 | L65: =MAX(F65:I65)-MIN(F65:I65) -> 9
A67: Senioren männlich II:
A68: Pl: | B68: Name: | D68: Ver: | E68: Sp-Nr: | F68: 1.Rd. | G68: 2.Rd. | H68: 3.Rd. | I68: 4.Rd. | J68: Ges: | K68: ø | L68: Diff:
A69: 1. | B69: Reinicke, | C69: Michael | D69: Cux | E69: 42690 | F69: 26 | G69: 25 | H69: 21 | I69: 25 | J69: =SUM(F69:I69) -> 97 | K69: =ROUND(J69/4,3) -> 24.250 | L69: =MAX(F69:I69)-MIN(F69:I69) -> 5
A70: 2. | B70: Schlüter, | C70: Wilfried | D70: VfB | E70: 36394 | F70: 25 | G70: 28 | H70: 21 | I70: 26 | J70: 100 | K70: 25.000 | L70: 7
A71: 3. | B71: Vollmer, | C71: Jürgen | D71: Pad | E71: 43224 | F71: 25 | G71: 29 | H71: 24 | I71: 22 | J71: 100 | K71: 25.000 | L71: 7 | M71: zsna
A72: 4. | B72: Heinisch, | C72: Hans-Werner | D72: Nen | E72: 31397 | F72: 27 | G72: 25 | H72: 26 | I72: 25 | J72: 103 | K72: 25.750 | L72: 2
A73: 5. | B73: Gohl, | C73: Michael | D73: MCG | E73: 41340 | F73: 24 | G73: 27 | H73: 26 | I73: 28 | J73: 105 | K73: 26.250 | L73: 4
A74: 6. | B74: Garbers, | C74: Bruno | D74: SCD | E74: 45293 | F74: 26 | G74: 24 | H74: 27 | I74: 29 | J74: 106 | K74: 26.500 | L74: 5
A75: 7. | B75: Reinicke, | C75: Frank | D75: Cux | E75: 42691 | F75: 29 | G75: 20 | H75: 27 | I75: 31 | J75: 107 | K75: 26.750 | L75: 11
A76: 8. | B76: Dassek, | C76: Michael | D76: SCD | E76: 45297 | F76: 27 | G76: 28 | H76: 26 | I76: 26 | J76: 107 | K76: 26.750 | L76: 2
A77: 9. | B77: Müller, | C77: Wolfgang | D77: VfL | E77: 18367 | F77: 24 | G77: 29 | H77: 25 | I77: 29 | J77: 107 | K77: 26.750 | L77: 5
A78: 10. | B78: Beneking, | C78: Erwin | D78: MCG | E78: 183 | F78: 29 | G78: 30 | H78: 27 | I78: 29 | J78: 115 | K78: 28.750 | L78: 3
A79: 11. | B79: Luttmann, | C79: Herbert | D79: VfB | E79: 38641 | F79: 33 | G79: 29 | H79: 30 | I79: 25 | J79: 117 | K79: 29.250 | L79: 8
A80: 12. | B80: Kubzda, | C80: Manfred | D80: MGV | E80: 66045 | F80: 37 | G80: 26 | H80: 34 | I80: 27 | J80: 124 | K80: 31.000 | L80: 11
A81: 13. | B81: Löwer, | C81: Herbert | D81: Kas | E81: 5594 | F81: 38 | G81: 36 | H81: 29 | I81: 26 | J81: 129 | K81: 32.250 | L81: 12
A82: 14. | B82: Uetzmann, | C82: Heinrich | D82: TMV | E82: 66441 | F82: 41 | G82: 35 | H82: 42 | I82: 47 | J82: 165 | K82: 41.250 | L82: 12
A84: Jugend männlich:
A85: Pl: | B85: Name: | D85: Ver: | E85: Sp-Nr: | F85: 1.Rd. | G85: 2.Rd. | H85: 3.Rd. | I85: 4.Rd. | J85: Ges: | K85: ø | L85: Diff:
A86: 1. | B86: Börger, | C86: Pascal | D86: MCG | E86: 66946 | F86: 28 | G86: 32 | H86: 32 | I86: 24 | J86: =SUM(F86:I86) -> 116 | K86: =ROUND(J86/4,3) -> 29.000 | L86: =MAX(F86:I86)-MIN(F86:I86) -> 8
A88: F. Beste Durchgänge:
B89: Vereinsmannschaft: | C89: BGC Diepholz II | F89: 99
C90: BGC Diepholz I | F90: 99
B91: Damen: | C91: Raschke/Dejoks, Isabell | E91: Die | F91: 21
B92: Herren: | C92: Betzien, André | E92: Die | F92: 22
B93: Seniorinnen I: | C93: Reinicke, Andrea | E93: Cux | F93: 19 | G93: 2x BR
B94: Seniorinnen II: | C94: Abeling-Betzien, Birgit | E94: Die | F94: 29
B95: Senioren I: | C95: Hennies, Holger | E95: Han | F95: 23
C96: Schulte, Udo | E96: VfB | F96: 23
C97: Louven, Hans | E97: MCG | F97: 23
B98: Senioren II: | C98: Reinicke, Frank | E98: Cux | F98: 20 | G98: BRE
B99: Jugend männlich: | C99: Börger, Pascal | E99: MCG | F99: 24 | G99: BRE
A101: G. Zeichenerklärung:
C102: Die: | D102: BGC Diepholz
C103: Bre: | D103: BGC Bremen
C104: Cux: | D104: MC "Möve" Cuxhaven/Sahlenburg
C105: Han: | D105: 1. BGC Hannover
C106: Kas: | D106: 1. MGC Kassel
C107: MGV: | D107: MGV Bremen
C108: MCG: | D108: MC Georgsmarienhütte (NBV)
C109: Nen: | D109: BGC Bad Nenndorf
C110: Pad: | D110: 1. BGC Paderborn (NBV)
C111: SCD: | D111: SC Olympia Dortmund (NBV)
C112: TMV: | D112: Tempelhofer MV (BVBB)
C113: VfL: | D113: VfL Lüneburg
C114: VfB: | D114: VfB Osnabrück (NBV)
C115: BVBB: | D115: Bahnengolf-Verband Berlin-Brandenburg
C116: NBV: | D116: Nordrhein-Westfälischer Bahnengolf Verband
C117: BRE: | D117: Bahnrekord eingestellt
C118: BR: | D118: Bahnrekord
C119: zsna: | D119: zum Stechen nicht angetreten
A121: Für die Richtigkeit
A122: Diepholz den, 11.08.2019
A124: Raschke, Marcel
A125: (Turnierleiter)

Sheet Mannschaft
A1: BGC Diepholz II
A2: Nr: | B2: Name: | C2: Kat: | D2: Sp-Nr: | E2: 1.Rd. | F2: 2.Rd. | G2: 3.Rd. | H2: 4.Rd. | I2: Ges:
A3: 1. | B3: Raschke, Marcel | C3: H | D3: 36567 | E3: 23 | F3: 25 | G3: 27 | H3: 25 | I3: =SUM(E3:H3) -> 100
A4: 2. | B4: Hunte, Stefanie | C4: Sw I | D4: 40603 | E4: 28 | F4: 26 | G4: 32 | H4: 27 | I4: 113
A5: 3. | B5: Wesemann, Florian | C5: H | D5: 35546 | E5: 27 | F5: 23 | G5: 27 | H5: 27 | I5: 104
A6: 4. | B6: Wesemann, Eike-Fabian | C6: H | D6: 36292 | E6: 28 | F6: 25 | G6: 38 | H6: 26 | I6: 117
A7: 5. | B7: Hunte, Karl-Heinz | C7: Sm I | D7: 44723 | E7: 28 | F7: 28 | G7: 26 | H7: 26 | I7: 108
E8: 106 | F8: 99 | G8: 112 | H8: 105 | I8: 422
A10: BGC Diepholz I
A11: Nr: | B11: Name: | C11: Kat: | D11: Sp-Nr: | E11: 1.Rd. | F11: 2.Rd. | G11: 3.Rd. | H11: 4.Rd. | I11: Ges:
A12: 1. | B12: Betzien, André | C12: H | D12: 32105 | E12: 24 | F12: 23 | G12: 22 | H12: 26 | I12: =SUM(E12:H12) -> 95
A13: 2. | B13: Raschke/Dejoks, Isabell | C13: D | D13: 884 | E13: 26 | F13: 25 | G13: 25 | H13: 21 | I13: =SUM(E13:H13) -> 97
A14: 3. | B14: Abeling/Betzien, Birgit | C14: Sw II | D14: 869 | E14: 34 | F14: 35 | G14: 29 | H14: 31 | I14: =SUM(E14:H14) -> 129
A15: 4. | B15: Heisel, Thomas | C15: H | D15: 44726 | E15: 24 | F15: 28 | G15: 23 | H15: 26 | I15: =SUM(E15:H15) -> 101
E16: =SUM(E12:E15) -> 108 | F16: =SUM(F12:F15) -> 111 | G16: =SUM(G12:G15) -> 99 | H16: =SUM(H12:H15) -> 104 | I16: =SUM(E16:H16) -> 422
A18: MC Georgsmarienhütte
A19: Nr: | B19: Name: | C19: Kat: | D19: Sp-Nr: | E19: 1.Rd. | F19: 2.Rd. | G19: 3.Rd. | H19: 4.Rd. | I19: Ges:
A20: 1. | B20: Gohl, Michael | C20: Sm II | D20: 41340 | E20: 24 | F20: 27 | G20: 26 | H20: 28 | I20: =SUM(E20:H20) -> 105
A21: 2. | B21: Beneking, Erwin | C21: Sm II | D21: 183 | E21: 29 | F21: 30 | G21: 27 | H21: 29 | I21: =SUM(E21:H21) -> 115
A22: 3. | B22: Louven, Hans | C22: Sm I | D22: 66395 | E22: 33 | F22: 27 | G22: 23 | H22: 27 | I22: =SUM(E22:H22) -> 110
A23: 4. | B23: Börger, Pascal | C23: Jm | D23: 66946 | E23: 28 | F23: 32 | G23: 32 | H23: 24 | I23: =SUM(E23:H23) -> 116
E24: =SUM(E20:E23) -> 114 | F24: =SUM(F20:F23) -> 116 | G24: =SUM(G20:G23) -> 108 | H24: =SUM(H20:H23) -> 108 | I24: =SUM(E24:H24) -> 446
A26: MGV Bremen
A27: Nr: | B27: Name: | C27: Kat: | D27: Sp-Nr: | E27: 1.Rd. | F27: 2.Rd. | G27: 3.Rd. | H27: 4.Rd. | I27: Ges:
A28: 1. | B28: Pape, Ronald | C28: Sm I | D28: 36258 | E28: 36 | F28: 27 | G28: 28 | H28: 28 | I28: =SUM(E28:H28) -> 119
A29: 2. | B29: Thun, Timo | C29: H | D29: 31419 | E29: 31 | F29: 25 | G29: 28 | H29: 33 | I29: =SUM(E29:H29) -> 117
A30: 3. | B30: Kubzda, Manfred | C30: Sm II | D30: 66045 | E30: 37 | F30: 26 | G30: 34 | H30: 27 | I30: =SUM(E30:H30) -> 124
A31: 4. | B31: Damaschke, Christian | C31: Sm I | D31: 66729 | E31: 31 | F31: 34 | G31: 32 | H31: 31 | I31: =SUM(E31:H31) -> 128
E32: =SUM(E28:E31) -> 135 | F32: =SUM(F28:F31) -> 112 | G32: =SUM(G28:G31) -> 122 | H32: =SUM(H28:H31) -> 119 | I32: =SUM(E32:H32) -> 488

Sheet Statistik
A1: Bahnstatistik: | C1: 34. Müntepokal Turnier 2019
A3: Nr: | B3: Name der Bahn: | C3: 1. | D3: 2. | E3: 3. | F3: 4. | G3: 5. | H3: 6. | I3: 7. | J3: ø
A4: 1 | B4: Vulkan | C4: 120 | D4: 9 | E4: 1 | F4: 1 | H4: 1 | J4: 1.14
A5: 2 | B5: Hochteller | C5: 68 | D5: 24 | E5: 23 | F5: 10 | G5: 3 | H5: 1 | I5: 3 | J5: 2.02
A6: 3 | B6: Stumpfe Kegel | C6: 50 | D6: 80 | E6: 2 | J6: 1.64
A7: 4 | B7: Mausefalle | C7: 66 | D7: 46 | E7: 8 | F7: 8 | G7: 1 | H7: 2 | I7: 1 | J7: 1.80
A8: 5 | B8: Rechter Winkel | C8: 77 | D8: 47 | E8: 6 | F8: 2 | J8: 1.49
A9: 6 | B9: Mittelhügel | C9: 95 | D9: 20 | E9: 8 | F9: 3 | G9: 3 | H9: 1 | I9: 2 | J9: 1.56
A10: 7 | B10: Bodenwellen | C10: 57 | D10: 74 | E10: 1 | J10: 1.58
A11: 8 | B11: Brücke | C11: 40 | D11: 90 | E11: 2 | J11: 1.71
A12: 9 | B12: Schleife | C12: 109 | D12: 20 | E12: 1 | F12: 2 | J12: 1.21
A13: 10 | B13: Blitz | C13: 60 | D13: 55 | E13: 13 | F13: 3 | G13: 1 | J13: 1.71
A14: 11 | B14: V-Bahn | C14: 126 | D14: 6 | J14: 1.05
A15: 12 | B15: Steilschräge | C15: 76 | D15: 29 | E15: 18 | F15: 6 | G15: 1 | I15: 2 | J15: 1.75
A16: 13 | B16: Gradschlag oH | C16: 70 | D16: 60 | E16: 2 | J16: 1.48
A17: 14 | B17: Niere | C17: 69 | D17: 47 | E17: 10 | F17: 4 | H17: 1 | I17: 1 | J17: 1.68
A18: 15 | B18: Pyramiden | C18: 104 | D18: 20 | E18: 5 | F18: 2 | G18: 1 | J18: 1.30
A19: 16 | B19: Netz | C19: 117 | D19: 8 | E19: 5 | G19: 2 | J19: 1.20
A20: 17 | B20: Labyrinth | C20: 88 | D20: 22 | E20: 10 | F20: 6 | G20: 2 | I20: 4 | J20: 1.70
A21: 18 | B21: Stäbe | C21: 68 | D21: 51 | E21: 12 | F21: 1 | J21: 1.59

Sheet Gr. 1
D1: Turnierprotokoll
A4: Turnier: | C4: 34. Münte Pokal Turnier | G4: Gruppe. 1
A5: Veranstalter: | C5: BGC Diepholz e.V.
A6: Datum: | C6: 2019-08-10 | E6: Ort: | F6: Diepholz
A7: System(e): | C7: Abt. 2
C9: Name, Vorname: | E9: Verein: | H9: Lizenz-Nr:
A10: Turnierleiter: | C10: Raschke, Marcel | E10: BGC Diepholz | H10: 14567
A12: Oschi: | C12: Heinisch, Hans-Werner | E12: BGC Bad Nenndorf | H12: 10437
A13: Schiri: | C13: Thun, Timo | E13: MGV Bremen | H13: 10451
A14: Schiri: | C14: Betzien, André | E14: BGC Diepholz | H14: 10819
A16: Auswechselungen: | E16: Strafen:
A17: entfällt:
A23: Besondere Vorkommnisse: | E23: Besonderhalten, Beschädigungen oder Fehler an der Bahn:
A24: Regenunterbrechung von 12:50 bis 13:00 Uhr
A30: Ausnahmen für Spieler/innen: | E30: Ausnahmen DMV-Sportordung/int. Spielregeln:
A37: Proteste, Entscheidung Jury (bei Bedarf ist ein Extrablatt zu fertigen):
A44: Oberschiedsrichter: | C44: Heinisch, Hans-Werner
A46: Datum: | C46: 2019-08-10 | D46: Turnierleiter: | F46: Raschke, Marcel

Sheet Gr. 2
D1: Turnierprotokoll
A4: Turnier: | C4: 34. Münte Pokal Turnier | G4: Gruppe. 2
A5: Veranstalter: | C5: BGC Diepholz e.V.
A6: Datum: | C6: 2019-08-11 | E6: Ort: | F6: Diepholz
A7: System(e): | C7: Abt. 2
C9: Name, Vorname: | E9: Verein: | H9: Lizenz-Nr:
A10: Turnierleiter: | C10: Raschke, Marcel | E10: BGC Diepholz | H10: 14567
A12: Oschi: | C12: Reinicke, Frank | E12: MC Möve Cuxhaven | H12: 14597
A13: Schiri: | C13: Raschke/D., Isabell | E13: BGC Diepholz | H13: 2449
A14: Schiri: | C14: Raschke, Benjamin | E14: BGC Bremen | H14: 18708
A16: Auswechselungen: | E16: Strafen:
A17: entfällt:
A23: Besondere Vorkommnisse: | E23: Besonderhalten, Beschädigungen oder Fehler an der Bahn:
A30: Ausnahmen für Spieler/innen: | E30: Ausnahmen DMV-Sportordung/int. Spielregeln:
A37: Proteste, Entscheidung Jury (bei Bedarf ist ein Extrablatt zu fertigen):
A44: Oberschiedsrichter: | C44: Reinicke, Frank
A46: Datum: | C46: 2019-08-11 | D46: Turnierleiter: | F46: Raschke, Marcel
